fUSD/lending_fUSD_20251026
["ID","MTS","AMOUNT","RATE_DAILY","PERIOD"]
[392423749,1761459002910,-500.0,0.00035345,9]
[392423750,1761459002937,-500.0,0.00035345,9]
[392423751,1761459002965,-500.0,0.00035345,9]
[392423752,1761459002992,-500.0,0.00035345,9]
[392423753,1761459003018,-162.05326296,0.00035345,9]
[392423754,1761459003048,-500.0,0.00035345,9]
[392423755,1761459003076,-500.0,0.00035345,9]
[392423756,1761459003102,-289.09815439,0.00035345,9]
[392423757,1761459003130,-1541.44,0.00035345,9]
[392423758,1761459003158,-500.0,0.00035345,9]
[392423759,1761459003185,-1562.89,0.00035345,2]
[392423760,1761459003212,-974.74,0.00035345,9]
[392423761,1761459003239,-500.0,0.00035345,9]
[392423762,1761459003266,-425.5669436,0.00035345,9]
[392423763,1761459003292,-500.0,0.00035345,9]
[392423764,1761459003317,-500.0,0.00035345,2]
[392423765,1761459003345,-500.0,0.00035345,9]
[392423766,1761459003371,-166.66,0.00035426,2]
[392423767,1761459003516,-322.74,0.00035514,2]
[392423768,1761459003544,-500.0,0.00035615,9]
[392423769,1761459003571,-500.0,0.00035615,9]
[392423770,1761459003596,-231.30898278,0.00035616,2]
[392423771,1761459003621,-619.16416228,0.00035619,9]
[392423772,1761459003647,-500.0,0.00035619,9]
[392423773,1761459003673,-500.0,0.00035619,9]
[392423774,1761459003698,-500.0,0.00035619,9]
[392423775,1761459003724,-500.0,0.00035619,9]
[392423776,1761459003750,-340.20818242,0.00035619,9]
[392423777,1761459003777,-500.0,0.00035619,9]
[392423778,1761459003803,-500.0,0.00035619,9]
[392423779,1761459003831,-500.0,0.00035619,9]
[392423780,1761459003858,-500.0,0.00035619,9]
[392423781,1761459003885,-500.0,0.00035619,9]
[392423782,1761459003913,-1541.44,0.00035619,9]
[392423783,1761459003941,-415.79645168,0.00035619,9]
[392423784,1761459003967,-1562.89,0.00035619,2]
[392423785,1761459003994,-974.74,0.00035619,9]
[392423786,1761459004020,-500.0,0.00035619,9]
[392423787,1761459004046,-500.0,0.00035619,9]
[392423788,1761459004076,-500.0,0.00035619,2]
[392423789,1761459004105,-500.0,0.00035619,9]
[392423790,1761459004132,-811.28735621,0.0003566,2]
[392423791,1761459004161,-153.19992776,0.00035889,9]
[392423792,1761459004188,-500.0,0.00035889,9]
[392423793,1761459004214,-500.0,0.00035893,9]
[392423794,1761459004241,-500.0,0.00035893,9]
[392423795,1761459004268,-500.0,0.00035893,9]
[392423796,1761459004294,-188.62940904,0.00035893,9]
[392423797,1761459004322,-500.0,0.00035893,9]
[392423798,1761459004348,-500.0,0.00035893,9]
[392423799,1761459004376,-500.0,0.00035893,9]
[392423800,1761459004405,-644.77963002,0.00035893,9]
[392423801,1761459004433,-500.0,0.00035893,9]
[392423802,1761459004459,-1541.44,0.00035893,9]
[392423803,1761459004485,-1562.89,0.00035893,2]
[392423804,1761459004514,-974.74,0.00035893,9]
[392423805,1761459004540,-319.45852775,0.00035893,9]
[392423806,1761459004567,-500.0,0.00035893,9]
[392423807,1761459004593,-500.0,0.00035893,2]
[392423808,1761459004621,-500.0,0.00035893,9]
[392423809,1761459004647,-1565.231638,0.00035955,8]
[392423810,1761459004672,-500.0,0.00036,2]
[392423811,1761459004697,-500.0,0.00036,2]
[392423812,1761459004724,-500.0,0.00036,2]
[392423813,1761459004750,-166.0,0.00036,30]
[392423814,1761459004778,-169.24,0.00036017,120]
[392423815,1761459004804,-1000.0,0.00036027,2]
[392423816,1761459004832,-811.28735621,0.00036064,2]
[392423817,1761459004859,-500.0,0.00036163,9]
[392423818,1761459004886,-1425.0,0.00036166,2]
[392423819,1761459004913,-275.55845111,0.00036167,9]
[392423820,1761459004939,-500.0,0.00036167,9]
[392423821,1761459004964,-500.0,0.00036167,9]
[392423822,1761459004993,-500.0,0.00036167,9]
[392423823,1761459005019,-500.0,0.00036167,9]
[392423824,1761459005047,-500.0,0.00036167,9]
[392423825,1761459005073,-500.0,0.00036167,9]
[392423826,1761459005100,-1541.44,0.00036167,9]
[392423827,1761459005125,-1562.89,0.00036167,2]
[392423828,1761459005152,-974.74,0.00036167,9]
[392423829,1761459005176,-500.0,0.00036167,9]
[392423830,1761459005203,-500.0,0.00036167,2]
[392423831,1761459005229,-500.0,0.00036167,9]
[392423832,1761459005255,-1200.0,0.000363,13]
[392423833,1761459005281,-1425.0,0.00036313,2]
[392423834,1761459005307,-440.0613268,0.0003635,2]
[392423835,1761459005333,-169.22956863,0.00036368,2]
[392423836,1761459005359,-554.0249,0.00036384,3]
[392423837,1761459005385,-169.22956861,0.00036388,2]
[392423838,1761459005414,-1600.0,0.000364,13]
[392423839,1761459005442,-169.22956861,0.00036408,2]
[392423840,1761459005467,-169.22956861,0.00036428,2]
[392423841,1761459005495,-500.0,0.00036437,9]
[392423842,1761459005520,-500.0,0.00036441,9]
[392423843,1761459005545,-500.0,0.00036441,9]
[392423844,1761459005571,-500.0,0.00036441,9]
[392423845,1761459005595,-500.0,0.00036441,9]
[392423846,1761459005620,-500.0,0.00036441,9]
[392423847,1761459005646,-500.0,0.00036441,9]
[392423848,1761459005671,-1541.44,0.00036441,9]
[392423849,1761459005695,-1562.89,0.00036441,2]
[392423850,1761459005720,-974.74,0.00036441,9]
[392423851,1761459005746,-500.0,0.00036441,9]
[392423852,1761459005772,-500.0,0.00036441,2]
[392423853,1761459005798,-500.0,0.00036441,9]
[392423854,1761459005823,-169.22956861,0.00036448,2]
[392423855,1761459005848,-169.22956861,0.00036468,2]
[392423856,1761459005874,-2136.70276685,0.00036468,2]
[392423857,1761459005901,-811.28735621,0.00036468,2]
[392423858,1761459005928,-10894.20179702,0.00036468,2]
[392423859,1761459005955,-187.57305535,0.00036468,2]
[392423860,1761459005980,-2500.0,0.000365,7]
[392423861,1761459006005,-215.0,0.000365,17]
[392423862,1761459006030,-500.0,0.000365,21]
[392423863,1761459006055,-2000.0,0.000365,13]
[392423864,1761459006080,-529.60548709,0.00036547,9]
[392423865,1761459006103,-1320.0,0.00036548,120]
[392423866,1761459006127,-174.0,0.00036548,120]
[392423867,1761459006151,-163.28046371,0.0003655,9]
[392423868,1761459006176,-1000.0,0.00036567,2]
[392423869,1761459006202,-500.0,0.00036567,7]
[392423870,1761459006227,-1000.0,0.00036567,2]
[392423871,1761459006253,-1000.0,0.00036567,2]
[392423872,1761459006278,-1000.0,0.00036567,2]
[392423873,1761459006302,-1000.0,0.00036567,2]
[392423874,1761459006327,-1000.0,0.00036567,2]
[392423875,1761459006464,-1000.0,0.00036567,2]
[392423876,1761459006490,-1000.0,0.00036567,2]
[392423877,1761459006516,-1000.0,0.00036567,2]
[392423878,1761459006541,-1000.0,0.00036567,2]
[392423879,1761459006566,-1000.0,0.00036567,2]
[392423880,1761459006591,-1000.0,0.00036567,2]
[392423881,1761459006616,-1000.0,0.00036567,2]
[392423882,1761459006640,-1000.0,0.00036567,2]
[392423883,1761459006665,-1000.0,0.00036567,2]
[392423884,1761459006689,-283.62001327,0.00036567,2]
[392423885,1761459006716,-1630168.09629519,0.00036568,120]
[392423886,1761459006744,-1929367.68455834,0.00036568,120]
[392423887,1761459006771,-190557.99945741,0.00036568,120]
[392423888,1761459012503,2000.0,0.000315,120]
[392423896,1761459031538,-1400.91668411,0.00032788,2]
[392423897,1761459031548,-500.0,0.00032879,9]
[392423898,1761459031557,-500.0,0.00032879,2]
[392423899,1761459031567,-500.0,0.00032879,9]
[392423900,1761459031576,-233.00767407,0.00032879,9]
[392423901,1761459031588,-266.99232593,0.00032879,9]
[392423902,1761459031597,-436.00474752,0.00032879,9]
[392423903,1761459031705,-63.99525248,0.00032879,9]
[392423904,1761459031714,-500.0,0.00032879,9]
[392423905,1761459031723,-500.0,0.00032879,2]
[392423906,1761459031732,-500.0,0.00032879,9]
[392423907,1761459031742,-500.0,0.00032879,2]
[392423908,1761459031751,-5000.0,0.00033053,2]
[392423909,1761459031759,-500.0,0.00033153,9]
[392423910,1761459031769,-500.0,0.00033153,2]
[392423911,1761459031778,-1400.91668403,0.00033197,2]
[392423912,1761459031786,-150.0,0.00033378,3]
[392423913,1761459031795,-1400.91668403,0.00033606,2]
[392423914,1761459031804,-1400.91668403,0.00034015,2]
[392423915,1761459031814,-162.32861674,0.00034037,9]
[392423916,1761459031823,-1400.91668403,0.00034424,2]
[392423917,1761459031833,-500.0,0.00034523,9]
[392423918,1761459031842,-500.0,0.00034797,9]
[392423919,1761459031851,-1400.91668403,0.00034832,2]
[392423920,1761459031860,-500.0,0.00035071,9]
[392423921,1761459031871,-1400.91668403,0.00035241,2]
[392423922,1761459031880,-500.0,0.00035345,9]
[392423923,1761459031889,-500.0,0.00035345,9]
[392423924,1761459031898,-500.0,0.00035619,9]
[392423925,1761459031907,-500.0,0.00035619,9]
[392423926,1761459031916,-1400.91668403,0.0003565,2]
[392423927,1761459031926,-500.0,0.00035893,9]
[392423928,1761459031935,-500.0,0.00035893,9]
[392423930,1761459031945,-1400.91668403,0.00036059,2]
[392423932,1761459031955,-250.0,0.00036067,2]
[392423935,1761459031964,-644.39288061,0.00036167,9]
[392423936,1761459031973,-621.41115996,0.00036167,9]
[392423938,1761459031983,-152.51,0.00036558,2]
[392423940,1761459031992,-152.51,0.00036558,2]
[392423943,1761459032001,-152.51,0.00036558,2]
[392423945,1761459032011,-152.51,0.00036558,2]
[392423947,1761459032020,-51140.19870176,0.00036567,32]
[392423949,1761459032032,-6355.7214634,0.00036567,32]
[392423951,1761459032042,-343.24244796,0.00036567,32]
[392423953,1761459032053,-508.16981641,0.00036567,32]
[392423956,1761459032068,-630.75339574,0.00036567,32]
[392424002,1761459037545,-500.0,0.00032879,9]
[392424003,1761459037572,-1400.91668403,0.00036468,2]
[392424004,1761459037597,-255.19946037,0.00036566,15]
[392424005,1761459037625,-622.09094975,0.00036566,15]
[392424006,1761459037652,-350.54395805,0.00036567,15]
[392424007,1761459037679,-119325.48686315,0.00036567,32]
[392424008,1761459037706,-1738809.68510093,0.00036568,120]
[392424009,1761459037732,-1929367.68455834,0.00036568,120]
[392424010,1761459037759,-1609368.39242538,0.00036568,120]
[392424022,1761459039587,-319999.29213296,0.00036568,120]
[392424023,1761459039596,-265697.18527918,0.00036568,120]
[392424026,1761459042879,-500.0,0.00032879,9]
[392424027,1761459042888,-52.7,0.00036568,120]
[392424047,1761459056645,-789.0,0.00036568,120]
[392424048,1761459056691,-500.0,0.00032879,9]
[392424049,1761459056701,-15928.45323244,0.00036568,120]
[392424056,1761459588854,207.38,0.00013699,2]
[392424058,1761459907869,4999792.62,0.00015,2]
[392424059,1761459907898,91455.6450616,0.00015,2]
[392424061,1761459945842,3155.1481663,0.0001995,15]
[392424067,1761460055726,-415.49253283,0.00016,2]
[392424068,1761460058931,-224.20570329,0.00016,2]
[392424076,1761460145112,-92.96727019,0.00016,2]
[392424077,1761460145136,-191.0,0.00016712,2]
[392424078,1761460145167,-250.0,0.00016856,2]
[392424079,1761460145196,-250.0,0.00017,2]
[392424080,1761460145226,-1447.89772665,0.00017,2]
[392424081,1761460145255,-2422.17769996,0.000175,2]
[392424092,1761460231799,-3827.70761752,0.000175,2]
[392424095,1761460232022,-120.88336064,0.000175,2]
[392424096,1761460232031,-150.0,0.000175,2]
[392424097,1761460232040,-16.44054315,0.00017999,2]
[392424098,1761460232081,-283.55945685,0.00017999,2]
[392424099,1761460232090,-300.0,0.00017999,2]
[392424100,1761460232100,-527.82663936,0.00017999,2]
[392424110,1761460240194,-672.17336064,0.00017999,2]
[392424111,1761460240207,-7390.7180133,0.00018,2]
[392424112,1761460240216,-250.0,0.00018384,2]
[392424113,1761460240226,-300.0,0.00019,2]
[392424114,1761460240236,-287.0,0.00019639,2]
[392424115,1761460240246,-420.0,0.00019639,2]
[392424116,1761460240423,-1151.0,0.00019735,2]
[392424117,1761460240435,-339.03,0.00019915,2]
[392424118,1761460240446,-207.38,0.00020187,2]
[392424119,1761460240456,-587.0,0.00021428,2]
[392424120,1761460240465,-823.0,0.00023381,2]
[392424121,1761460240474,-1152.0,0.00025511,2]
[392424122,1761460240483,-207.38,0.00026676,2]
[392424123,1761460240491,-468.0,0.00027835,2]
[392424124,1761460240501,-150.0,0.00030833,2]
[392424125,1761460240510,-1000.0,0.0003147,2]
[392424126,1761460240519,-177.76,0.00031655,2]
[392424127,1761460240529,-1000.0,0.00031744,2]
[392424128,1761460240538,-168.0,0.00031849,2]
[392424129,1761460240547,-305.9736867,0.00032,120]
[392424130,1761460240561,-1000.0,0.00032018,2]
[392424131,1761460240571,-168.0,0.00032085,2]
[392424132,1761460240580,-168.0,0.00032265,2]
[392424133,1761460240590,-1000.0,0.00032292,2]
[392424134,1761460240599,-168.0,0.00032302,7]
[392424135,1761460240608,-476.61195222,0.00032333,2]
[392424136,1761460240618,-150.0,0.00032349,7]
[392424137,1761460240627,-150.0,0.00032486,7]
[392424138,1761460240636,-1000.0,0.00032566,2]
[392424139,1761460240646,-168.0,0.00032586,7]
[392424140,1761460240655,-328.245044,0.000326,2]
[392424141,1761460240665,-168.0,0.00032636,2]
[392424142,1761460240674,-240.01957545,0.0003278,2]
[392424143,1761460240684,-15247.97418774,0.000328,2]
[392424144,1761460240693,-156.78,0.000328,30]
[392424145,1761460240702,-203.721,0.000328,33]
[392424146,1761460240711,-593.84,0.000328,33]
[392424147,1761460240720,-1000.0,0.0003284,2]
[392424148,1761460240729,-247.18011937,0.0003286,2]
[392424149,1761460240738,-368.76858415,0.00032879,2]
[392424150,1761460240747,-500.0,0.00032879,9]
[392424151,1761460240759,-500.0,0.00032879,9]
[392424152,1761460240768,-275.02,0.00032879,14]
[392424153,1761460240777,-317.63925262,0.00032882,2]
[392424154,1761460240786,-240.01957545,0.00032885,2]
[392424155,1761460240795,-247.18011937,0.0003291,2]
[392424156,1761460240805,-247.18011937,0.00032923,2]
[392424157,1761460240814,-317.63925262,0.00032932,2]
[392424158,1761460240823,-317.63925262,0.00032947,2]
[392424159,1761460240833,-240.01957545,0.00032951,2]
[392424160,1761460240842,-443.63942469,0.00033,2]
[392424161,1761460240851,-150.937,0.00033023,2]
[392424162,1761460240860,-275.02,0.00033153,14]
[392424163,1761460240869,-207.38,0.00033165,2]
[392424164,1761460240878,-168.0,0.00033219,2]
[392424165,1761460240887,-152.0,0.00033381,3]
[392424166,1761460240897,-275.02,0.00033427,14]
[392424167,1761460240906,-168.0,0.0003344,7]
[392424168,1761460240916,-196.72,0.00033497,2]
[392424169,1761460240925,-3489.0,0.00033549,2]
[392424170,1761460240935,-6585.0,0.00033549,2]
[392424171,1761460240944,-1138.932,0.00033549,2]
[392424172,1761460240957,-572.0,0.00033549,2]
[392424173,1761460240966,-819.0,0.00033549,2]
[392424174,1761460240976,-168.0,0.00033556,2]
[392424175,1761460240990,-2009.6,0.00033689,2]
[392424176,1761460240999,-163.73972323,0.00033699,30]
[392424177,1761460241008,-275.02,0.00033701,14]
[392424178,1761460241018,-290.79,0.00033707,2]
[392424179,1761460241028,-168.0,0.00033748,7]
[392424180,1761460241038,-1000.0,0.00033849,2]
[392424181,1761460241047,-150.0,0.00033875,2]
[392424182,1761460241060,-150.0,0.00033875,120]
[392424183,1761460241070,-168.0,0.00033879,2]
[392424184,1761460241079,-2385.02,0.00033903,2]
[392424185,1761460241087,-168.0,0.00033935,2]
[392424186,1761460241097,-275.03,0.00033975,14]
[392424187,1761460241106,-160.46146004,0.00034,2]
[392424188,1761460241115,-300.0,0.00034034,7]
[392424189,1761460241124,-163.73972325,0.00034055,30]
[392424190,1761460241134,-163.73972323,0.00034055,30]
[392424191,1761460241143,-163.73972323,0.00034055,30]
[392424192,1761460241152,-475.22,0.00034058,2]
[392424193,1761460241165,-168.0,0.00034077,2]
[392424194,1761460241175,-168.0,0.00034195,2]
[392424195,1761460241185,-2302.65886647,0.000343,3]
[392424196,1761460241195,-168.0,0.00034332,2]
[392424197,1761460241204,-150.0,0.00034334,2]
[392424198,1761460241214,-168.0,0.00034355,2]
[392424199,1761460241224,-155.37,0.00034457,2]
[392424200,1761460241233,-1703.12590222,0.0003449,2]
[392424201,1761460241244,-11305.58094452,0.0003456,2]
[392424202,1761460241254,-168.0,0.00034611,2]
[392424203,1761460241265,-166.67,0.00034677,2]
[392424204,1761460241277,-1000.0,0.00034876,2]
[392424205,1761460241288,-500.0,0.00034923,7]
[392424206,1761460241298,-387.7869679,0.00034923,7]
[392424207,1761460241307,-330.49,0.00035104,30]
[392424208,1761460241316,-152.0,0.00035129,4]
[392424209,1761460241325,-168.0,0.0003522,2]
[392424210,1761460241334,-2194.27349964,0.00035469,2]
[392424211,1761460241344,-168.0,0.00035595,2]
[392424212,1761460241356,-223.72577233,0.00035616,2]
[392424213,1761460241365,-500.0,0.00035974,2]
[392424214,1761460241375,-1647.6014212,0.00036,120]
[392424215,1761460241384,-169.0,0.00036,30]
[392424216,1761460241394,-196.72,0.00036009,2]
[392424217,1761460241403,-168.0,0.00036126,2]
[392424218,1761460241413,-252.2616,0.0003618,2]
[392424219,1761460241422,-200.0,0.000362,13]
[392424220,1761460241432,-500.0,0.000363,13]
[392424221,1761460241444,-945.38286259,0.00036368,7]
[392424222,1761460241455,-2000.0,0.00036384,3]
[392424223,1761460241466,-800.0,0.000364,13]
[392424224,1761460241476,-811.28735622,0.00036459,2]
[392424225,1761460241484,-187.57305535,0.00036459,2]
[392424226,1761460241493,-811.28735621,0.0003646,2]
[392424227,1761460241502,-1425.0,0.00036461,2]
[392424228,1761460241511,-811.28735621,0.00036461,2]
[392424229,1761460241521,-811.28735621,0.00036462,2]
[392424230,1761460241530,-811.28735621,0.00036463,2]
[392424231,1761460241539,-811.28735621,0.00036464,2]
[392424232,1761460241550,-811.28735621,0.00036465,2]
[392424233,1761460241559,-811.28735621,0.00036466,2]
[392424234,1761460241570,-811.28735621,0.00036467,2]
[392424235,1761460241580,-564.29521402,0.00036468,2]
[392424236,1761460241589,-1100.0,0.00036468,2]
[392424237,1761460241599,-7262.801198,0.00036468,2]
[392424238,1761460241608,-811.28735621,0.00036468,2]
[392424239,1761460241617,-150.0,0.000365,17]
[392424240,1761460241627,-209.02383024,0.000365,120]
[392424241,1761460241637,-1100.0,0.000365,13]
[392424242,1761460241646,-500.0,0.00036557,9]
[392424243,1761460241656,-500.0,0.00036557,9]
[392424244,1761460241665,-500.0,0.00036557,9]
[392424245,1761460241675,-500.0,0.00036557,9]
[392424246,1761460241686,-544.70127636,0.00036557,9]
[392424247,1761460241696,-500.0,0.00036557,9]
[392424248,1761460241706,-500.0,0.00036557,9]
[392424249,1761460241715,-500.0,0.00036557,7]
[392424250,1761460241725,-500.0,0.00036557,9]
[392424251,1761460241741,-500.0,0.00036557,9]
[392424252,1761460241755,-500.0,0.00036557,9]
[392424253,1761460241764,-314.08721373,0.00036557,9]
[392424254,1761460241774,-500.0,0.00036557,9]
[392424255,1761460241784,-500.0,0.00036557,9]
[392424256,1761460241793,-500.0,0.00036557,9]
[392424257,1761460241803,-500.0,0.00036557,7]
[392424258,1761460241815,-500.0,0.00036557,9]
[392424259,1761460241824,-500.0,0.00036557,9]
[392424260,1761460241833,-500.0,0.00036557,9]
[392424261,1761460241844,-500.0,0.00036557,9]
[392424262,1761460241853,-500.0,0.00036557,9]
[392424263,1761460241862,-500.0,0.00036557,9]
[392424264,1761460241872,-500.0,0.00036557,9]
[392424265,1761460241882,-500.0,0.00036557,9]
[392424266,1761460241891,-500.0,0.00036557,9]
[392424267,1761460241900,-500.0,0.00036557,9]
[392424268,1761460241911,-500.0,0.00036557,9]
[392424269,1761460241921,-500.0,0.00036557,9]
[392424270,1761460241931,-500.0,0.00036557,9]
[392424271,1761460241940,-312.61772861,0.00036557,9]
[392424272,1761460241951,-500.0,0.00036557,9]
[392424273,1761460241960,-500.0,0.00036557,9]
[392424274,1761460241971,-500.0,0.00036557,9]
[392424275,1761460241982,-500.0,0.00036557,9]
[392424276,1761460241993,-500.0,0.00036557,9]
[392424277,1761460242003,-380.0,0.00036557,9]
[392424278,1761460242012,-500.0,0.00036557,9]
[392424279,1761460242022,-500.0,0.00036557,9]
[392424280,1761460242032,-500.0,0.00036557,9]
[392424281,1761460242041,-500.0,0.00036557,9]
[392424282,1761460242051,-500.0,0.00036557,9]
[392424283,1761460242061,-500.0,0.00036557,9]
[392424284,1761460242071,-500.0,0.00036557,9]
[392424285,1761460242080,-500.0,0.00036557,9]
[392424286,1761460242091,-500.0,0.00036557,9]
[392424287,1761460242100,-500.0,0.00036557,9]
[392424288,1761460242109,-500.0,0.00036557,9]
[392424289,1761460242118,-500.0,0.00036557,9]
[392424290,1761460242127,-500.0,0.00036557,9]
[392424291,1761460242137,-500.0,0.00036557,9]
[392424292,1761460242147,-500.0,0.00036557,9]
[392424293,1761460242156,-500.0,0.00036557,9]
[392424294,1761460242165,-500.0,0.00036557,9]
[392424295,1761460242174,-500.0,0.00036557,9]
[392424296,1761460242183,-500.0,0.00036557,9]
[392424297,1761460242194,-295.75228844,0.00036557,2]
[392424298,1761460242203,-500.0,0.00036557,9]
[392424299,1761460242213,-500.0,0.00036557,9]
[392424300,1761460242222,-500.0,0.00036557,9]
[392424301,1761460242231,-500.0,0.00036557,9]
[392424302,1761460242241,-500.0,0.00036557,9]
[392424303,1761460242250,-500.0,0.00036557,2]
[392424304,1761460242259,-500.0,0.00036557,9]
[392424305,1761460242269,-500.0,0.00036557,9]
[392424306,1761460242278,-500.0,0.00036557,9]
[392424307,1761460242288,-500.0,0.00036557,9]
[392424308,1761460242300,-500.0,0.00036557,2]
[392424309,1761460242310,-500.0,0.00036557,9]
[392424310,1761460242320,-500.0,0.00036557,9]
[392424311,1761460242329,-500.0,0.00036557,9]
[392424312,1761460242339,-500.0,0.00036557,9]
[392424313,1761460242348,-500.0,0.00036557,9]
[392424314,1761460242358,-513.6398895,0.00036557,9]
[392424315,1761460242367,-500.0,0.00036557,9]
[392424316,1761460242376,-500.0,0.00036557,9]
[392424317,1761460242386,-500.0,0.00036557,9]
[392424318,1761460242396,-500.0,0.00036557,9]
[392424319,1761460242408,-500.0,0.00036557,9]
[392424320,1761460242419,-500.0,0.00036557,9]
[392424321,1761460242430,-500.0,0.00036557,9]
[392424322,1761460242440,-500.0,0.00036557,9]
[392424323,1761460242451,-500.0,0.00036557,9]
[392424324,1761460242460,-500.0,0.00036557,9]
[392424325,1761460242470,-500.0,0.00036557,9]
[392424326,1761460242480,-500.0,0.00036557,9]
[392424327,1761460242491,-500.0,0.00036557,9]
[392424328,1761460242501,-500.0,0.00036557,9]
[392424329,1761460242510,-586.15581238,0.00036557,9]
[392424330,1761460242520,-500.0,0.00036557,9]
[392424331,1761460242529,-500.0,0.00036557,9]
[392424332,1761460242538,-500.0,0.00036557,9]
[392424333,1761460242548,-587.66425738,0.00036557,9]
[392424334,1761460242558,-500.0,0.00036557,9]
[392424335,1761460242567,-500.0,0.00036557,9]
[392424336,1761460242576,-500.0,0.00036557,9]
[392424337,1761460242585,-500.0,0.00036557,2]
[392424338,1761460242594,-500.0,0.00036557,9]
[392424339,1761460242603,-500.0,0.00036557,9]
[392424340,1761460242612,-500.0,0.00036557,9]
[392424341,1761460242622,-500.0,0.00036557,9]
[392424342,1761460242632,-500.0,0.00036557,9]
[392424343,1761460242641,-500.0,0.00036557,9]
[392424344,1761460242650,-500.0,0.00036557,9]
[392424345,1761460242660,-500.0,0.00036557,9]
[392424346,1761460242673,-500.0,0.00036557,9]
[392424347,1761460242682,-500.0,0.00036557,9]
[392424348,1761460242691,-500.0,0.00036557,9]
[392424349,1761460242701,-500.0,0.00036557,9]
[392424350,1761460242710,-500.0,0.00036557,9]
[392424351,1761460242720,-500.0,0.00036557,9]
[392424352,1761460242731,-500.0,0.00036557,9]
[392424353,1761460242741,-500.0,0.00036557,9]
[392424354,1761460242750,-500.0,0.00036557,9]
[392424355,1761460242760,-500.0,0.00036557,9]
[392424356,1761460242769,-500.0,0.00036557,9]
[392424357,1761460242780,-187.78889731,0.00036557,9]
[392424359,1761460242789,-651.2,0.00036557,2]
[392424360,1761460242799,-642.26,0.00036557,9]
[392424361,1761460242808,-589.3252297,0.00036557,9]
[392424362,1761460242818,-486.04759831,0.00036557,9]
[392424363,1761460242827,-300.0,0.00036557,9]
[392424364,1761460242837,-500.0,0.00036557,9]
[392424365,1761460242846,-500.0,0.00036557,9]
[392424366,1761460242856,-500.0,0.00036557,9]
[392424367,1761460242865,-500.0,0.00036557,9]
[392424368,1761460242875,-325.24388322,0.00036557,9]
[392424369,1761460242884,-303.29647545,0.00036557,9]
[392424370,1761460242893,-500.0,0.00036557,9]
[392424371,1761460242903,-500.0,0.00036557,9]
[392424372,1761460242912,-500.0,0.00036557,9]
[392424373,1761460242922,-500.0,0.00036557,2]
[392424374,1761460242931,-500.0,0.00036557,9]
[392424375,1761460242940,-500.0,0.00036557,9]
[392424376,1761460242950,-568.48260373,0.00036557,9]
[392424377,1761460242959,-276.75866433,0.00036557,9]
[392424378,1761460242968,-500.0,0.00036557,9]
[392424379,1761460242978,-500.0,0.00036557,9]
[392424380,1761460242993,-500.0,0.00036557,9]
[392424381,1761460243003,-500.0,0.00036557,9]
[392424382,1761460243012,-500.0,0.00036557,9]
[392424383,1761460243023,-500.0,0.00036557,9]
[392424384,1761460243032,-538.75951064,0.00036557,9]
[392424385,1761460243042,-500.0,0.00036557,9]
[392424386,1761460243051,-500.0,0.00036557,9]
[392424387,1761460243066,-231.60827316,0.00036557,9]
[392424388,1761460243075,-489.8736009,0.00036557,9]
[392424389,1761460243084,-187.00437377,0.00036557,9]